bitfinex/quotes_BTCUSD_20241116
["timestamp","ask_amount","ask_price","bid_price","bid_amount"]
[1731745442536,0.01056228,91257.0,91256.0,0.109581]
[1731745443869,0.24482483,91257.0,91256.0,0.109581]
[1731745445254,0.24482483,91257.0,91256.0,0.1914462]
[1731745445255,0.13576228,91257.0,91256.0,0.1914462]
[1731745446058,0.13576228,91257.0,91256.0,0.109581]
[1731745446892,0.24482483,91257.0,91256.0,0.1164248]
[1731745447116,0.25482483,91257.0,91256.0,0.0068438]
[1731745447285,0.36640483,91257.0,91256.0,0.0068438]
[1731745447693,0.005,91233.0,91227.0,0.219233]
[1731745447921,0.005,91233.0,91226.0,0.219235]
[1731745447922,0.005,91233.0,91232.0,0.27385047]
[1731745448159,0.005,91233.0,91232.0,0.10961]
[1731745448329,0.00878886,91233.0,91232.0,0.10961]
[1731745448700,0.005,91233.0,91232.0,0.10961]
[1731745450216,0.1102,91235.0,91234.0,0.109608]
[1731745452798,0.0829,91250.0,91249.0,0.10959]
[1731745453019,0.19196255,91250.0,91249.0,0.10959]
[1731745453241,0.24206195,91250.0,91249.0,0.10959]
[1731745454442,0.24706195,91250.0,91249.0,0.10959]
[1731745454660,0.005,91249.0,91246.0,0.109593]
[1731745454871,0.24326255,91248.0,91246.0,0.109593]
[1731745455082,0.1292,91247.0,91246.0,0.109593]
[1731745455319,0.005,91231.0,91216.0,0.0008574]
[1731745455558,0.01,91231.0,91230.0,0.16424047]
[1731745455780,0.01,91231.0,91221.0,0.219247]
[1731745455781,0.005,91230.0,91229.0,0.109613]
[1731745455995,0.1342,91230.0,91229.0,0.109613]
[1731745456493,0.13796344,91230.0,91229.0,0.109613]
[1731745456712,0.24702599,91230.0,91229.0,0.109613]
[1731745456965,0.1292,91226.0,91219.0,0.219252]
[1731745457191,0.005,91221.0,91216.0,0.26554567]
[1731745457422,0.0463,91222.0,91218.0,0.109627]
[1731745457423,0.0829,91219.0,91218.0,0.109627]
[1731745457632,0.19196255,91219.0,91218.0,0.109627]
[1731745457856,0.19473574,91219.0,91218.0,0.109627]
[1731745458930,0.19473574,91219.0,91216.0,0.2201164]
[1731745458931,0.01,91217.0,91216.0,0.0008574]
[1731745459144,0.24826255,91217.0,91216.0,0.0008574]
[1731745459369,0.25103093,91217.0,91216.0,0.0008574]
[1731745460486,0.25103093,91217.0,91216.0,0.1104864]
[1731745460736,0.24826255,91217.0,91216.0,0.1104864]
[1731745461155,0.25190753,91217.0,91216.0,0.0008574]
[1731745461619,0.25190753,91217.0,91216.0,0.1104864]
[1731745462702,0.25310868,91217.0,91216.0,0.1104864]
[1731745466441,0.005,91213.0,91206.0,0.04501555]
[1731745466668,0.10906255,91212.0,91208.0,0.219279]
[1731745466878,0.11390455,91212.0,91211.0,0.109635]
[1731745469603,0.11390455,91212.0,91211.0,0.11648241]
[1731745470294,0.11390455,91212.0,91211.0,0.109635]
[1731745470502,0.11390455,91212.0,91211.0,0.11733961]
[1731745470718,0.11390455,91212.0,91211.0,0.1104922]
[1731745470925,0.11390455,91212.0,91211.0,0.11733961]
[1731745471130,0.11390455,91212.0,91211.0,0.1104922]
[1731745471556,0.11390455,91212.0,91211.0,0.11733961]
[1731745473108,0.11390455,91212.0,91211.0,0.1104922]
[1731745474462,0.25330455,91212.0,91211.0,0.0008572]
[1731745474888,0.25530455,91212.0,91211.0,0.0008572]
[1731745476438,0.36493855,91212.0,91211.0,0.0008572]
[1731745476937,0.48946632,91212.0,91211.0,0.0008572]
[1731745477144,0.48462432,91212.0,91211.0,0.0008572]
[1731745477350,0.53038625,91212.0,91211.0,0.0008572]
[1731745478944,0.50762432,91212.0,91211.0,0.0008572]
[1731745484636,0.50762432,91212.0,91178.0,0.21935]
[1731745484637,0.0881,91183.0,91178.0,0.26373125]
[1731745484849,0.20216255,91183.0,91182.0,0.3298667]
[1731745485498,0.20216255,91183.0,91182.0,0.0008567]
[1731745485983,0.20216255,91183.0,91182.0,0.1105267]
[1731745486414,0.20216255,91183.0,91182.0,0.0008567]
[1731745487677,0.20216255,91183.0,91182.0,0.1105267]
[1731745492141,0.012,91177.0,91174.0,0.219358]
[1731745492359,0.12106255,91177.0,91174.0,0.219358]
[1731745492578,0.12106255,91177.0,91176.0,0.1105337]
[1731745500406,0.11906255,91177.0,91176.0,0.1105337]
[1731745500846,0.12106255,91177.0,91176.0,0.1105337]
[1731745502419,0.11606255,91177.0,91176.0,0.1105337]
[1731745506392,0.11406255,91177.0,91176.0,0.1105337]
[1731745506601,0.11406255,91177.0,91176.0,0.2382337]
[1731745507493,0.10906255,91177.0,91176.0,0.2382337]
[1731745507775,0.11406255,91177.0,91176.0,0.2382337]
[1731745508833,0.10906255,91177.0,91176.0,0.1583337]
[1731745509085,0.11406255,91177.0,91176.0,0.1583337]
[1731745510585,0.11406255,91177.0,91176.0,0.1105337]
[1731745518716,0.11577815,91177.0,91176.0,0.1105337]
[1731745525107,0.11577815,91177.0,91176.0,0.2344337]
[1731745528347,0.0017156,91177.0,91176.0,0.2344337]
[1731745528601,0.0017156,91177.0,91176.0,0.32123021]
[1731745528833,0.0017156,91177.0,91176.0,0.43645204]
[1731745529063,0.0017156,91177.0,91176.0,0.48570662]
[1731745529263,0.0017156,91177.0,91176.0,0.2394337]
[1731745529473,0.0017156,91177.0,91176.0,0.48556471]
[1731745529685,0.0017156,91177.0,91176.0,0.2394337]
[1731745531430,0.0017156,91177.0,91176.0,0.43621291]
[1731745532297,0.0017156,91177.0,91176.0,0.2394337]
[1731745535372,0.0017156,91177.0,91176.0,0.38694403]
[1731745538244,0.0017156,91177.0,91176.0,0.2624337]
[1731745538450,0.0017156,91177.0,91176.0,0.33775239]
[1731745538660,0.0017156,91177.0,91176.0,0.2394337]
[1731745539076,0.0017156,91177.0,91176.0,0.2344337]
[1731745539255,0.0017156,91177.0,91176.0,0.1569337]
[1731745539907,0.35325415,91177.0,91176.0,0.0008567]
[1731745540112,0.35525415,91177.0,91176.0,0.0008567]
[1731745540745,0.24357815,91177.0,91176.0,0.0008567]
[1731745540941,0.24557815,91177.0,91176.0,0.0008567]
[1731745541396,0.24557815,91177.0,91176.0,0.00770739]
[1731745544718,0.11577815,91177.0,91176.0,0.0895039]
[1731745544921,0.0017156,91177.0,91176.0,0.1991809]
[1731745545277,0.0017156,91177.0,91176.0,0.11738439]
[1731745545816,0.0017156,91177.0,91176.0,0.16078796]
[1731745548048,0.0017156,91177.0,91176.0,0.16578796]
[1731745550016,0.0017156,91177.0,91176.0,0.00770739]
[1731745550017,0.22545415,91177.0,91176.0,0.00770739]
[1731745550253,0.22745415,91177.0,91176.0,0.00770739]
[1731745550490,0.22745415,91177.0,91176.0,0.0008567]
[1731745550920,0.32586688,91177.0,91176.0,0.0008567]
[1731745551142,0.22745415,91177.0,91176.0,0.0008567]
[1731745552652,0.11577815,91177.0,91176.0,0.0008567]
[1731745553634,0.11777815,91177.0,91176.0,0.0008567]
[1731745553856,0.11577815,91177.0,91176.0,0.0008567]
[1731745555702,0.11577815,91177.0,91176.0,0.1105337]
[1731745558009,0.11577815,91177.0,91176.0,0.0008567]
[1731745558213,0.11777815,91177.0,91176.0,0.0008567]
[1731745559597,0.11777815,91177.0,91176.0,0.1105337]
[1731745560472,0.11577815,91177.0,91176.0,0.1105337]
[1731745560910,0.0067156,91177.0,91176.0,0.1105337]
[1731745561093,0.0017156,91177.0,91176.0,0.1105337]
[1731745561268,0.0017156,91177.0,91176.0,0.11738433]
[1731745561760,0.0017156,91177.0,91176.0,0.11738402]
[1731745562217,0.0017156,91177.0,91176.0,0.11738405]
[1731745562652,0.0017156,91177.0,91176.0,0.1105337]
[1731745563113,0.34995415,91177.0,91176.0,0.0008567]
[1731745563344,0.35195415,91177.0,91176.0,0.0008567]
[1731745563983,0.34995415,91177.0,91176.0,0.0008567]
[1731745564245,0.35195415,91177.0,91176.0,0.0008567]
[1731745576551,0.11577815,91177.0,91176.0,0.0008567]
[1731745576772,0.11577815,91177.0,91176.0,0.1105337]
[1731745576773,0.0017156,91177.0,91176.0,0.1105337]
[1731745579512,0.0017156,91177.0,91176.0,0.0008567]
[1731745579513,0.11577815,91177.0,91176.0,0.0008567]
[1731745579735,0.22745415,91177.0,91176.0,0.0008567]
[1731745580638,0.11777815,91177.0,91176.0,0.0008567]
[1731745580896,0.005,91174.0,91172.0,0.109681]
[1731745581121,0.10906255,91173.0,91172.0,0.109681]
[1731745581591,0.11106255,91173.0,91172.0,0.109681]
[1731745581824,0.10906255,91173.0,91172.0,0.109681]
[1731745582041,0.10906255,91173.0,91170.0,0.109684]
[1731745582481,0.10906255,91173.0,91171.0,0.109683]
[1731745583143,0.10906255,91173.0,91166.0,0.21938]
[1731745583365,0.10906255,91173.0,91171.0,0.109682]
[1731745583802,0.10906255,91173.0,91172.0,0.109682]
[1731745584449,0.005,91174.0,91173.0,0.109681]
[1731745584690,0.005,91174.0,91168.0,0.44375]
[1731745584691,0.0067156,91177.0,91176.0,0.109677]
[1731745585119,0.0017156,91177.0,91176.0,0.109677]
[1731745587540,0.0017156,91177.0,91176.0,0.1105343]
[1731745588636,0.0067156,91177.0,91176.0,0.1105343]
[1731745590151,0.0017156,91177.0,91176.0,0.1105343]
[1731745590390,0.0067156,91177.0,91176.0,0.1105343]
[1731745591278,0.0017156,91177.0,91176.0,0.1105343]
[1731745591497,0.0067156,91177.0,91176.0,0.1105343]
[1731745592369,0.0067156,91177.0,91176.0,0.0008573]
[1731745592582,0.0067156,91177.0,91176.0,0.1105343]
[1731745592788,0.0067156,91177.0,91176.0,0.0008573]
[1731745592980,0.0017156,91177.0,91176.0,0.1105343]
[1731745593223,0.0067156,91177.0,91176.0,0.1105343]
[1731745595597,0.0067156,91177.0,91176.0,0.15412213]
[1731745598643,0.0067156,91177.0,91176.0,0.04444513]
[1731745599686,0.0067156,91177.0,91176.0,0.15412213]
[1731745599899,0.11577815,91177.0,91176.0,0.0008573]
[1731745600151,0.22745415,91177.0,91176.0,0.0008573]
[1731745602665,0.22545415,91177.0,91176.0,0.0008573]
[1731745603109,0.22745415,91177.0,91176.0,0.0008573]
[1731745604379,0.22545415,91177.0,91176.0,0.0008573]
[1731745604586,0.22745415,91177.0,91176.0,0.0008573]
[1731745625311,0.32595968,91177.0,91176.0,0.0008573]
[1731745628348,0.22745415,91177.0,91176.0,0.0008573]
[1731745630545,0.11577815,91177.0,91176.0,0.1105343]
[1731745630753,0.11077815,91177.0,91176.0,0.1105343]
[1731745631849,0.11077815,91177.0,91176.0,0.0008573]
[1731745632059,0.40865968,91177.0,91176.0,0.00906417]
[1731745632270,0.40866942,91177.0,91176.0,0.00906417]
[1731745632695,0.31015415,91177.0,91176.0,0.0008573]
[1731745632903,0.40867023,91177.0,91176.0,0.0090665]
[1731745633107,0.31015415,91177.0,91176.0,0.0090665]
[1731745633315,0.31015415,91177.0,91176.0,0.0008573]
[1731745635359,0.31015415,91177.0,91176.0,0.00906557]
[1731745635587,0.31015415,91177.0,91176.0,0.0008573]
[1731745635858,0.31015415,91177.0,91176.0,0.00906552]
[1731745636078,0.45796052,91177.0,91176.0,0.00906552]
[1731745636308,0.31015415,91177.0,91176.0,0.00906552]
[1731745636530,0.31015415,91177.0,91176.0,0.0008573]
[1731745636752,0.4579714,91177.0,91176.0,0.00906539]
[1731745636969,0.31015415,91177.0,91176.0,0.00906539]
[1731745637099,0.45797154,91177.0,91176.0,0.00906539]
[1731745637315,0.11577815,91177.0,91176.0,0.00906539]
[1731745640996,0.11577815,91177.0,91176.0,0.0008573]
[1731745643283,0.22545415,91177.0,91176.0,0.0008573]
[1731745643413,0.11577815,91177.0,91176.0,0.0008573]
[1731745644254,0.22545415,91177.0,91176.0,0.0008573]
[1731745645327,0.3240078,91177.0,91176.0,0.0008573]
[1731745645837,0.3260078,91177.0,91176.0,0.0008573]
[1731745647265,0.22745415,91177.0,91176.0,0.0008573]
[1731745648432,0.11777815,91177.0,91176.0,0.0008573]
[1731745650804,0.21637047,91177.0,91176.0,0.0008573]
[1731745658020,0.32604417,91177.0,91176.0,0.0008573]
[1731745659652,0.21636817,91177.0,91176.0,0.0008573]
[1731745659865,0.21436817,91177.0,91176.0,0.0008573]
[1731745660139,0.0017156,91177.0,91176.0,0.32154568]
[1731745663464,0.0017156,91177.0,91176.0,0.36684864]
[1731745666158,0.0017156,91177.0,91176.0,0.37184864]
[1731745666387,0.0017156,91177.0,91176.0,0.39484864]
[1731745672289,0.0017156,91177.0,91176.0,0.04616026]
[1731745672524,0.11077815,91177.0,91171.0,0.04351055]
[1731745672727,0.21874055,91176.0,91171.0,0.04351055]
[1731745672954,0.002,91173.0,91169.0,0.109685]
[1731745673182,0.10906255,91172.0,91169.0,0.109685]
[1731745673413,0.10906255,91172.0,91167.0,0.219375]
[1731745673620,0.10906255,91172.0,91171.0,0.109684]
[1731745676307,0.11270422,91172.0,91171.0,0.109684]
[1731745678651,0.11270422,91172.0,91171.0,0.1105414]
[1731745679268,0.00364167,91172.0,91171.0,0.1105414]
[1731745679523,0.00364167,91172.0,91171.0,0.2397414]
[1731745679744,0.0017156,91177.0,91176.0,0.109677]
[1731745680036,0.0017156,91177.0,91176.0,0.19148838]
[1731745683709,0.0017156,91177.0,91176.0,0.109677]
[1731745686618,0.0017156,91177.0,91176.0,0.15515063]
[1731745687321,0.11077815,91177.0,91171.0,0.0008574]
[1731745687536,0.10968,91175.0,91171.0,0.0008574]
[1731745687713,0.10906255,91174.0,91171.0,0.0008574]
[1731745687969,0.109682,91173.0,91171.0,0.0008574]
[1731745688195,0.1296,91175.0,91171.0,0.0008574]
[1731745688196,0.22074455,91172.0,91171.0,0.0008574]
[1731745688641,0.23016654,91172.0,91171.0,0.0008574]
[1731745688873,0.22074455,91172.0,91171.0,0.0008574]
[1731745689307,0.10906255,91172.0,91171.0,0.0008574]
[1731745689722,0.11848353,91172.0,91171.0,0.0008574]
[1731745690141,0.10906255,91172.0,91171.0,0.1105414]
[1731745691217,0.11190403,91172.0,91171.0,0.0008574]
[1731745692263,0.11190403,91172.0,91171.0,0.1105414]
[1731745694397,0.10906255,91172.0,91171.0,0.1105414]
[1731745701717,0.0017156,91177.0,91176.0,0.109677]
[1731745701930,0.11077815,91177.0,91176.0,0.109677]
[1731745703704,0.0017156,91177.0,91176.0,0.109677]
[1731745706616,0.11077815,91177.0,91176.0,0.109677]
[1731745707242,0.11558245,91177.0,91176.0,0.109677]
[1731745707869,0.0065199,91177.0,91176.0,0.231877]
[1731745708081,0.0065199,91177.0,91176.0,0.35654658]
[1731745708323,0.0017156,91177.0,91176.0,0.231877]
[1731745708535,0.0017156,91177.0,91176.0,0.35654658]
[1731745710900,0.0017156,91177.0,91176.0,0.31363954]
[1731745712429,0.0017156,91177.0,91176.0,0.31863954]
[1731745718391,0.0017156,91177.0,91176.0,0.40040208]
[1731745718809,0.0017156,91177.0,91176.0,0.36143148]
[1731745719219,0.0017156,91177.0,91176.0,0.66145438]
[1731745719440,0.0017156,91177.0,91176.0,0.51398596]
[1731745719656,0.0017156,91177.0,91176.0,0.66145438]
[1731745720507,0.0017156,91177.0,91176.0,0.51398596]
[1731745721336,0.0017156,91177.0,91176.0,0.62804851]
[1731745721731,0.0017156,91177.0,91176.0,0.77530417]
[1731745721955,0.0017156,91177.0,91176.0,0.77530219]
[1731745722368,0.0017156,91177.0,91176.0,0.62804851]
[1731745723448,0.0017156,91177.0,91176.0,0.72618525]
[1731745723871,0.0017156,91177.0,91176.0,0.62804851]
[1731745726307,0.16428047,91200.0,91199.0,0.11465]
[1731745726517,0.16428047,91200.0,91199.0,0.23920448]
[1731745726928,4e-05,91200.0,91199.0,0.23920448]
[1731745729300,0.16424047,91210.0,91209.0,0.109638]
[1731745729735,0.0017148,91212.0,91210.0,0.109637]
[1731745734774,0.0017148,91212.0,91210.0,0.15368727]
[1731745737450,0.1275148,91211.0,91210.0,0.15368727]
[1731745740842,0.23657735,91211.0,91210.0,0.15368727]
[1731745741118,0.23657735,91211.0,91210.0,0.04405027]
[1731745741448,0.23657735,91211.0,91210.0,0.109637]
[1731745741660,0.23657735,91211.0,91200.0,0.219296]
[1731745741878,0.10906255,91210.0,91205.0,0.109642]
[1731745742086,0.10906255,91210.0,91197.0,0.08173612]
[1731745742087,0.10906255,91210.0,91206.0,0.109641]
[1731745742304,0.10906255,91210.0,91199.0,0.2193]
[1731745742526,0.10906255,91210.0,91197.0,0.08173612]
[1731745742527,0.21869955,91210.0,91204.0,0.109643]
[1731745742988,0.10906255,91210.0,91200.0,0.219298]
[1731745743201,0.10906255,91210.0,91206.0,0.109641]
[1731745743415,0.10906255,91210.0,91202.0,0.219293]
[1731745743660,0.10906255,91210.0,91206.0,0.109641]
[1731745744095,0.10906255,91210.0,91207.0,0.10964]
[1731745744555,0.10906255,91210.0,91205.0,0.109641]
[1731745744771,0.002,91209.0,91199.0,0.219299]
[1731745744986,0.10906255,91208.0,91204.0,0.109644]
[1731745745638,0.10906255,91208.0,91207.0,0.10964]
[1731745746321,0.0017148,91211.0,91210.0,0.109637]
[1731745746530,0.11077735,91211.0,91210.0,0.109637]
[1731745746738,0.0017148,91211.0,91210.0,0.109637]
[1731745750983,0.0017148,91211.0,91210.0,0.15454222]
[1731745752336,0.0017148,91211.0,91210.0,0.24127834]
[1731745752973,0.0017148,91211.0,91210.0,0.15954222]
[1731745753643,0.0017148,91211.0,91210.0,0.15454222]
[1731745754066,0.0775148,91211.0,91210.0,0.15454222]
[1731745754274,0.0017148,91211.0,91210.0,0.15454222]
[1731745754857,0.11077735,91211.0,91210.0,0.15454222]
[1731745755632,0.0017148,91211.0,91210.0,0.15454222]
[1731745756069,0.0017148,91211.0,91210.0,0.15954222]
[1731745760177,0.0017148,91211.0,91206.0,0.16347224]
[1731745760178,0.0017148,91211.0,91206.0,0.08173612]
[1731745760384,0.0017148,91211.0,91206.0,0.16347224]
[1731745761072,0.0017148,91211.0,91210.0,0.109637]
[1731745771304,0.11077735,91211.0,91210.0,0.109637]
[1731745774890,0.0017148,91211.0,91210.0,0.109637]
[1731745775917,0.0017148,91211.0,91206.0,0.12539504]
[1731745776452,0.0017148,91211.0,91210.0,0.109637]
[1731745785297,0.11077735,91211.0,91210.0,0.109637]
[1731745785521,0.15927735,91211.0,91210.0,0.109637]
[1731745785719,0.24117735,91211.0,91210.0,0.109637]
[1731745792312,0.24117735,91211.0,91206.0,0.15415692]
[1731745792537,0.10906255,91210.0,91209.0,0.109638]
[1731745794283,0.079,91209.0,91206.0,0.000857]
[1731745794496,0.084,91207.0,91206.0,0.000857]
[1731745794682,0.35310255,91207.0,91206.0,0.000857]
[1731745795783,0.24346255,91207.0,91206.0,0.000857]
[1731745797044,0.24346255,91207.0,91206.0,0.110498]
[1731745797262,0.24346255,91207.0,91206.0,0.000857]
[1731745797463,0.24146255,91207.0,91206.0,0.000857]
[1731745799065,0.24146255,91207.0,91206.0,0.110498]
[1731745802111,0.10906255,91207.0,91206.0,0.110498]
[1731745804087,0.0017148,91211.0,91210.0,0.109637]
[1731745804301,0.0017148,91211.0,91210.0,0.19137312]
[1731745804509,0.0017148,91211.0,91208.0,0.18379332]
[1731745804713,0.0017148,91211.0,91210.0,0.109637]
[1731745807336,0.0017148,91211.0,91210.0,0.15446401]
[1731745808615,0.0017148,91211.0,91210.0,0.20396401]
[1731745809533,0.0017148,91211.0,91210.0,0.28626401]
[1731745816485,0.0017148,91211.0,91210.0,0.29126401]
[1731745816689,0.0017148,91211.0,91210.0,0.38931988]
[1731745817119,0.0017148,91211.0,91210.0,0.29126401]
[1731745820367,0.0017148,91211.0,91210.0,0.38931988]
[1731745820820,8e-07,91211.0,91210.0,0.57541037]
[1731745821238,8e-07,91211.0,91210.0,0.42832656]
[1731745821417,0.0017148,91212.0,91211.0,0.30610724]
[1731745821418,6e-07,91212.0,91211.0,0.30610724]
[1731745821664,6e-07,91212.0,91211.0,0.93298713]
[1731745821925,6e-07,91212.0,91211.0,0.78616979]
[1731745823261,6e-07,91212.0,91211.0,0.93291764]
[1731745825523,0.0497,91248.0,91211.0,0.93291764]
[1731745825524,0.09822726,91271.0,91268.0,0.114567]
[1731745825743,0.2946818,91291.0,91268.0,0.114567]
[1731745825744,0.09822726,91298.0,91291.0,0.109539]
[1731745825978,0.0799,91299.0,91291.0,0.109539]
[1731745825979,0.0799,91299.0,91291.0,0.19127512]
[1731745826460,0.0799,91299.0,91291.0,0.27301124]
[1731745827317,0.0008973,91300.0,91291.0,0.27301124]
[1731745827553,0.0008973,91300.0,91291.0,0.27801124]
[1731745828179,0.0008973,91300.0,91291.0,0.43170592]
[1731745828394,0.0008973,91300.0,91299.0,0.11453]
[1731745828611,0.0008973,91300.0,91299.0,0.27800224]
[1731745828839,0.0008973,91300.0,91299.0,0.11453]
[1731745829075,0.0008973,91300.0,91299.0,0.23873205]
[1731745830485,0.0008973,91300.0,91299.0,0.23373205]
[1731745835327,0.0849,91321.0,91299.0,0.23373205]
[1731745835328,0.65717775,91355.0,91338.0,0.005]
[1731745835519,0.65717775,91355.0,91344.0,0.109476]
[1731745835520,0.65717775,91345.0,91344.0,0.109476]
[1731745835912,0.00375709,91354.0,91353.0,0.109465]
[1731745837228,0.0813,91360.0,91351.0,0.218934]
[1731745837229,0.0813,91360.0,91359.0,0.109458]
[1731745837659,0.0850608,91360.0,91359.0,0.109458]
[1731745838091,0.0813,91360.0,91359.0,0.109458]
[1731745841479,0.08097172,91360.0,91359.0,0.109458]
[1731745842163,0.08182872,91360.0,91359.0,0.109458]
[1731745842588,0.08025298,91360.0,91359.0,0.109458]
[1731745851459,0.0799247,91360.0,91359.0,0.109458]
[1731745855650,0.000857,91360.0,91359.0,0.109458]
[1731745861432,0.00939003,91370.0,91369.0,0.00039266]
[1731745861633,0.12177358,91370.0,91369.0,0.10983866]
[1731745861858,0.12258287,91370.0,91369.0,0.10983866]
[1731745862384,0.13105604,91370.0,91369.0,0.10983866]
[1731745863077,0.13106121,91370.0,91369.0,0.10983866]
[1731745865799,0.13108886,91370.0,91369.0,0.10983866]
[1731745866670,0.12166186,91370.0,91369.0,0.10983866]
[1731745867248,0.12166186,91370.0,91369.0,0.109446]
[1731745867472,0.1212692,91370.0,91369.0,0.109446]
[1731745867677,0.13069973,91370.0,91369.0,0.109446]
[1731745869117,0.11279603,91370.0,91369.0,0.109446]
[1731745869252,0.13074916,91370.0,91369.0,0.109446]
[1731745871728,0.12130766,91370.0,91369.0,0.109446]
[1731745872789,0.11279603,91370.0,91369.0,0.109446]
[1731745872979,0.12130707,91370.0,91369.0,0.109446]
[1731745874987,0.11279603,91370.0,91369.0,0.109446]
[1731745875639,0.11279603,91370.0,91368.0,0.26395481]
[1731745875640,0.11279603,91370.0,91360.0,0.218914]
[1731745875850,0.11279603,91370.0,91361.0,0.16418654]
[1731745876077,0.11279603,91370.0,91359.0,0.0017112]
[1731745876300,0.11279603,91370.0,91369.0,0.109446]
[1731745877610,0.11365353,91370.0,91369.0,0.109446]
[1731745877816,0.11365353,91370.0,91369.0,0.15393028]
[1731745881710,0.11365353,91370.0,91369.0,0.109446]
[1731745881904,0.11365353,91370.0,91359.0,0.0017112]
[1731745882117,0.14686399,91368.0,91366.0,0.04473307]
[1731745882323,0.3631763,91369.0,91360.0,0.16418654]
[1731745882324,0.2114748,91367.0,91360.0,0.16418654]
[1731745882531,0.2114748,91367.0,91366.0,0.109449]
[1731745882776,0.00402312,91367.0,91360.0,0.218914]
[1731745882986,0.00402312,91367.0,91359.0,0.0017112]
[1731745882987,0.00402312,91367.0,91359.0,0.046]
[1731745883192,0.00402312,91367.0,91366.0,0.109449]
[1731745883863,0.00402312,91367.0,91364.0,0.109451]
[1731745884071,0.00402312,91367.0,91366.0,0.109449]
[1731745884274,0.00402312,91367.0,91361.0,0.109455]
[1731745884480,0.11347112,91367.0,91361.0,0.109455]
[1731745884917,0.00402312,91367.0,91359.0,0.046]
[1731745885143,0.00402312,91367.0,91359.0,0.264914]
[1731745885356,0.00402312,91367.0,91361.0,0.109455]
[1731745886061,0.00602312,91367.0,91359.0,0.046]
[1731745886295,0.002,91365.0,91359.0,0.264915]
[1731745886501,0.002,91365.0,91360.0,0.109457]
[1731745886502,0.00399648,91364.0,91360.0,0.109457]
[1731745886714,0.00399648,91364.0,91363.0,0.109453]
[1731745886903,0.1259,91363.0,91359.0,0.046]
[1731745887115,0.1259,91363.0,91362.0,0.109454]
[1731745887316,0.1259,91363.0,91359.0,0.046]
[1731745887317,0.1259,91363.0,91360.0,0.109456]
[1731745887944,0.1259,91363.0,91359.0,0.046]
[1731745888150,0.1259,91363.0,91360.0,0.218914]
[1731745888606,0.1259,91363.0,91359.0,0.046]
[1731745888607,0.002,91361.0,91359.0,0.155457]
[1731745888817,0.002,91361.0,91360.0,0.109457]
[1731745890089,0.002,91361.0,91359.0,0.046]
[1731745890329,0.00329529,91361.0,91360.0,0.109457]
[1731745891074,0.01172727,91361.0,91360.0,0.109457]
[1731745891299,0.00843198,91361.0,91359.0,0.155457]
[1731745891528,0.0789,91363.0,91361.0,0.109454]
[1731745891745,0.0789,91363.0,91362.0,0.109454]
[1731745891961,0.08733126,91363.0,91362.0,0.109454]
[1731745892420,0.002,91362.0,91359.0,0.046]
[1731745892642,0.00843126,91361.0,91359.0,0.046]
[1731745892845,0.00843126,91360.0,91359.0,0.046]
[1731745893775,0.01785857,91360.0,91359.0,0.046]
[1731745893993,0.01985716,91360.0,91359.0,0.046]
[1731745894417,0.0198571,91360.0,91359.0,0.046]
[1731745894845,0.01042985,91360.0,91359.0,0.046]
[1731745895048,0.002,91360.0,91359.0,0.046]
[1731745896137,0.01042777,91360.0,91359.0,0.046]
[1731745896593,0.00842777,91360.0,91359.0,0.155458]
[1731745897031,0.0789,91363.0,91359.0,0.155458]
[1731745897465,0.002,91361.0,91359.0,0.155458]
[1731745897904,0.00068571,91360.0,91359.0,0.046]
[1731745898313,0.002,91360.0,91359.0,0.046]
[1731745898520,0.00268571,91360.0,91359.0,0.046]
[1731745899191,0.01111178,91360.0,91359.0,0.046]
[1731745900047,0.00268571,91360.0,91359.0,0.046]
[1731745900513,0.11214271,91360.0,91359.0,0.046]
[1731745901594,0.00268571,91360.0,91359.0,0.046]
[1731745903922,0.11214271,91360.0,91359.0,0.046]
[1731745904156,0.12056871,91360.0,91359.0,0.046]
[1731745904807,0.01111171,91360.0,91359.0,0.046]
[1731745905240,0.01449869,91360.0,91359.0,0.046]
[1731745905450,0.01249869,91360.0,91359.0,0.046]
[1731745906115,0.00407269,91360.0,91359.0,0.046]
[1731745906328,0.00407269,91360.0,91341.0,0.218959]
[1731745906329,0.109458,91359.0,91343.0,0.109477]
[1731745906556,0.00407269,91360.0,91354.0,0.109463]
[1731745906782,0.00338219,91358.0,91354.0,0.109463]
[1731745907004,0.00338459,91359.0,91354.0,0.109463]
[1731745907227,0.00337979,91357.0,91342.0,0.26239905]
[1731745907444,0.109461,91357.0,91346.0,0.16418654]
[1731745907647,0.00068571,91360.0,91343.0,0.0462]
[1731745907648,0.0033774,91356.0,91343.0,0.0462]
[1731745907868,0.0033774,91356.0,91353.0,0.109464]
[1731745908072,0.11014271,91360.0,91353.0,0.109464]
[1731745908272,0.00401142,91355.0,91353.0,0.109464]
[1731745908480,0.109457,91360.0,91353.0,0.109464]
[1731745908686,0.0040108,91354.0,91353.0,0.109464]
[1731745908915,0.0033726,91354.0,91353.0,0.109464]
[1731745909811,0.0789,91363.0,91351.0,0.218934]
[1731745910041,0.109457,91360.0,91354.0,0.109464]
[1731745910277,0.00401106,91362.0,91343.0,0.0462]
[1731745910522,0.00401106,91362.0,91351.0,0.30040695]
[1731745910732,0.109454,91363.0,91351.0,0.218934]
[1731745910973,0.109454,91363.0,91345.0,0.24565949]
[1731745910974,0.218899,91366.0,91353.0,0.109464]
[1731745911177,0.11346606,91362.0,91356.0,0.109461]
[1731745911401,0.11346643,91361.0,91354.0,0.109463]
[1731745911605,0.109457,91360.0,91354.0,0.109463]
[1731745912052,0.00401043,91361.0,91346.0,0.16418654]
[1731745912263,0.11284359,91359.0,91346.0,0.16418654]
[1731745912493,0.109456,91361.0,91354.0,0.109463]
[1731745912723,0.109456,91361.0,91346.0,0.16418654]
[1731745912724,0.00062639,91358.0,91348.0,0.109471]
[1731745912957,0.109458,91359.0,91353.0,0.109465]
[1731745913186,0.00062816,91357.0,91353.0,0.109465]
[1731745913425,0.218911,91361.0,91348.0,0.218942]
[1731745913426,0.11008639,91358.0,91348.0,0.218942]
[1731745913637,0.00062994,91356.0,91353.0,0.109465]
[1731745914056,0.10946,91358.0,91353.0,0.109465]
[1731745914289,0.00063172,91355.0,91353.0,0.109465]
[1731745914497,0.10946,91358.0,91353.0,0.109465]
[1731745914701,0.0006335,91354.0,91353.0,0.109465]
[1731745914910,0.10946,91358.0,91351.0,0.001715]
[1731745915127,0.0006335,91354.0,91351.0,0.111182]
[1731745915345,0.10946,91358.0,91351.0,0.111182]
[1731745915573,0.109457,91360.0,91353.0,0.109465]
[1731745915800,0.00062816,91357.0,91353.0,0.109465]
[1731745916008,0.00338459,91359.0,91353.0,0.109465]